fUST/lending_fUST_20260111
["ID","MTS","AMOUNT","RATE_DAILY","PERIOD"]
[401336756,1768145443301,-638.41119879,0.00014247,2]
[401336758,1768145443311,-500.0,0.00014247,2]
[401336760,1768145443321,-505.42705469,0.00014247,2]
[401336762,1768145443330,-443.77041137,0.00014247,2]
[401336764,1768145443340,-1000.0,0.00014247,2]
[401336766,1768145443351,-1000.0,0.00014247,2]
[401336768,1768145443360,-1000.0,0.00014247,2]
[401336770,1768145443369,-1000.0,0.00014247,2]
[401336772,1768145443379,-1000.0,0.00014247,2]
[401336774,1768145443388,-3429.65312781,0.00014268,2]
[401336776,1768145443399,-151.95,0.000143,2]
[401336778,1768145443408,-1500.0,0.00014368,2]
[401336780,1768145443417,-1178.38612751,0.00014368,2]
[401336782,1768145443426,-546.83647191,0.00014368,2]
[401336784,1768145443435,-1500.0,0.00014368,2]
[401336786,1768145443445,-1500.0,0.00014368,2]
[401336788,1768145443454,-1000.80134157,0.00014368,2]
[401336790,1768145443463,-1500.0,0.00014368,2]
[401336792,1768145443473,-613.91769968,0.00014368,2]
[401336794,1768145443483,-1500.0,0.00014368,2]
[401336796,1768145443492,-1500.0,0.00014368,2]
[401336798,1768145443501,-1500.0,0.00014368,2]
[401336800,1768145443511,-554.02767991,0.00014368,2]
[401336802,1768145443520,-1500.0,0.00014368,2]
[401336804,1768145443529,-1000.0,0.00014368,2]
[401336806,1768145443538,-974.37024763,0.00014368,2]
[401336808,1768145443548,-1500.0,0.00014368,2]
[401336810,1768145443557,-763.96834089,0.00014368,2]
[401336812,1768145443566,-168.36851892,0.00014368,2]
[401336814,1768145443576,-1151.39515074,0.00014368,2]
[401336816,1768145443585,-1500.0,0.00014368,2]
[401336818,1768145443595,-1500.0,0.00014368,2]
[401336820,1768145443605,-1500.0,0.00014368,2]
[401336822,1768145443615,-1500.0,0.00014368,2]
[401336824,1768145443625,-1500.0,0.00014368,2]
[401336826,1768145443634,-1500.0,0.00014368,2]
[401336828,1768145443644,-1500.0,0.00014368,2]
[401336830,1768145443657,-1495.14442511,0.00014368,2]
[401336832,1768145443671,-1500.0,0.00014368,2]
[401336834,1768145443681,-1500.0,0.00014368,2]
[401336836,1768145443691,-1500.0,0.00014368,2]
[401336838,1768145443704,-1500.0,0.00014368,2]
[401336840,1768145443714,-1500.0,0.00014368,2]
[401336842,1768145443724,-1500.0,0.00014368,2]
[401336844,1768145443734,-1500.0,0.00014368,2]
[401336846,1768145443743,-723.48736773,0.00014368,2]
[401336848,1768145443758,-1500.0,0.00014368,2]
[401336850,1768145443767,-151.0,0.000144,2]
[401336852,1768145443776,-1000.0,0.00014431,2]
[401336854,1768145443785,-492.0,0.00014431,2]
[401336856,1768145443794,-367.81538277,0.00014506,2]
[401336858,1768145443804,-5000.0,0.0001451,2]
[401336860,1768145443813,-100000.0,0.00014736,2]
[401336862,1768145443823,-900.0,0.00014768,2]
[401336864,1768145443831,-455.20350931,0.00014782,2]
[401336866,1768145443841,-502.38932755,0.00014795,2]
[401336868,1768145443850,-161.478767,0.00014795,2]
[401336870,1768145443860,-1102.53259662,0.00014795,2]
[401336872,1768145443870,-1500.0,0.00014795,2]
[401336874,1768145443879,-1002.56553603,0.00014795,2]
[401336876,1768145443889,-1500.0,0.00014795,2]
[401336878,1768145443899,-1500.0,0.00014795,2]
[401336880,1768145443909,-1499.24471264,0.00014795,2]
[401336882,1768145443919,-1500.0,0.00014795,2]
[401336884,1768145443928,-1500.0,0.00014795,2]
[401336886,1768145443937,-501.33075681,0.00014795,2]
[401336888,1768145443947,-1500.0,0.00014795,2]
[401336890,1768145443956,-1500.0,0.00014795,2]
[401336892,1768145443965,-1500.0,0.00014795,2]
[401336894,1768145443974,-1163.68911449,0.00014795,2]
[401336896,1768145443984,-1500.0,0.00014795,2]
[401336898,1768145443993,-1500.0,0.00014795,2]
[401336899,1768145444002,-500.79965419,0.00014795,2]
[401336902,1768145444013,-892.83683556,0.00014795,2]
[401336903,1768145444022,-1500.0,0.00014795,2]
[401336905,1768145444031,-514.14829436,0.00014795,2]
[401336907,1768145444041,-1500.0,0.00014795,2]
[401336909,1768145444050,-1500.0,0.00014795,2]
[401336911,1768145444059,-1001.3782102,0.00014795,2]
[401336923,1768145444155,-1236.28209818,0.00014795,2]
[401336925,1768145444165,-1500.0,0.00014795,2]
[401336927,1768145444174,-503.75899236,0.00014795,2]
[401336929,1768145444183,-1500.0,0.00014795,2]
[401336931,1768145444195,-1500.0,0.00014795,2]
[401336933,1768145444213,-1500.0,0.00014795,2]
[401336935,1768145444222,-1516.76085072,0.00014795,2]
[401336937,1768145444231,-788.05151213,0.00014795,2]
[401336939,1768145444240,-1500.0,0.00014795,2]
[401336941,1768145444251,-500.0,0.00014795,2]
[401336943,1768145444261,-1500.0,0.00014795,2]
[401336945,1768145444270,-1482.84709438,0.00014795,2]
[401336947,1768145444279,-1500.0,0.00014795,2]
[401336948,1768145444288,-1509.97698878,0.00014795,2]
[401336949,1768145444297,-304.84096496,0.00014795,2]
[401336950,1768145444306,-1500.0,0.00014795,2]
[401336951,1768145444315,-1500.0,0.00014795,2]
[401336952,1768145444324,-274.70243505,0.0001485,2]
[401336953,1768145444334,-151.95,0.000149,2]
[401336954,1768145444343,-1362.69143232,0.000149,2]
[401336955,1768145444352,-151.0,0.000149,2]
[401336956,1768145444362,-194.80800863,0.00014916,2]
[401336957,1768145444372,-2000.0,0.00014916,2]
[401336958,1768145444381,-1485.3091038,0.00014916,2]
[401336959,1768145444391,-1150.76965904,0.00014916,2]
[401336960,1768145444400,-1965.81779273,0.00014916,2]
[401336961,1768145444410,-2000.0,0.00014916,2]
[401336962,1768145444419,-603.18109463,0.00014916,2]
[401336963,1768145444428,-2000.0,0.00014916,2]
[401336964,1768145444438,-2000.0,0.00014916,2]
[401336965,1768145444447,-1374.83618263,0.00014916,2]
[401336966,1768145444456,-2000.0,0.00014916,2]
[401336967,1768145444466,-2000.0,0.00014916,2]
[401336968,1768145444477,-2000.0,0.00014916,2]
[401336969,1768145444487,-613.36442406,0.00014916,2]
[401336970,1768145444497,-2000.0,0.00014916,2]
[401336971,1768145444507,-2000.0,0.00014916,2]
[401336972,1768145444517,-1374.68815725,0.00014916,2]
[401336973,1768145444527,-2000.0,0.00014916,2]
[401336974,1768145444537,-2000.0,0.00014916,2]
[401336975,1768145444547,-2000.0,0.00014916,2]
[401336976,1768145444556,-2000.0,0.00014916,2]
[401336977,1768145444566,-1502.33157316,0.00014916,2]
[401336978,1768145444575,-2000.0,0.00014916,2]
[401336979,1768145444585,-2000.0,0.00014916,2]
[401336980,1768145444594,-1000.0,0.00015,2]
[401336981,1768145444604,-2429.49739422,0.00015,2]
[401336982,1768145444615,-626.25201,0.00015068,2]
[401336983,1768145444624,-800.0,0.00015068,2]
[401336984,1768145444634,-1200.0,0.00015316,2]
[401336985,1768145444643,-2000.0,0.00015342,2]
[401336986,1768145444653,-2140.95571878,0.00015342,2]
[401336987,1768145444662,-2143.18421046,0.00015342,2]
[401336988,1768145444671,-2000.0,0.00015342,2]
[401336989,1768145444681,-674.14847626,0.00015342,2]
[401336990,1768145444691,-1089.88646751,0.00015342,2]
[401336991,1768145444700,-1000.0,0.00015342,2]
[401336992,1768145444710,-1204.73550321,0.00015342,2]
[401336993,1768145444719,-2097.05305078,0.00015342,2]
[401336994,1768145444727,-2000.0,0.00015342,2]
[401336995,1768145444736,-525.59078617,0.00015342,2]
[401336996,1768145444744,-885.09915474,0.00015342,2]
[401336997,1768145444752,-500.0,0.00015342,2]
[401336998,1768145444761,-2000.0,0.00015342,2]
[401336999,1768145444769,-1426.89565163,0.00015342,2]
[401337000,1768145444778,-304.72135436,0.00015342,2]
[401337001,1768145444787,-1144.01857865,0.00015342,2]
[401337002,1768145444796,-1004.51727604,0.00015342,2]
[401337003,1768145444806,-2000.0,0.00015342,2]
[401337004,1768145444816,-1501.01375621,0.00015342,2]
[401337005,1768145444826,-2000.0,0.00015342,2]
[401337006,1768145444836,-2000.0,0.00015342,2]
[401337007,1768145444847,-2258.0,0.00015379,2]
[401337008,1768145444857,-151.0,0.000154,2]
[401337009,1768145444868,-170.16316784,0.00015464,2]
[401337010,1768145444879,-281.06836301,0.00015464,2]
[401337011,1768145444888,-2500.0,0.00015464,2]
[401337012,1768145444899,-2500.0,0.00015464,2]
[401337013,1768145444909,-2500.0,0.00015464,2]
[401337014,1768145444919,-2500.0,0.00015464,2]
[401337015,1768145444930,-2500.0,0.00015464,2]
[401337016,1768145444940,-2500.0,0.00015464,2]
[401337017,1768145444950,-2500.0,0.00015464,2]
[401337018,1768145444960,-2500.0,0.00015464,2]
[401337019,1768145444969,-1466.62413338,0.00015464,2]
[401337020,1768145444979,-555.48898116,0.00015464,2]
[401337021,1768145444990,-2500.0,0.00015464,2]
[401337022,1768145444999,-2500.0,0.00015464,2]
[401337023,1768145445010,-2500.0,0.00015464,2]
[401337024,1768145445020,-151.95,0.000156,2]
[401337025,1768145445030,-1500.0,0.00015864,2]
[401337026,1768145445039,-1000.0,0.00015875,2]
[401337027,1768145445049,-791.0,0.00015875,2]
[401337028,1768145445059,-2500.0,0.0001589,2]
[401337030,1768145445069,-2500.0,0.0001589,2]
[401337031,1768145445079,-2500.0,0.0001589,2]
[401337032,1768145445089,-2134.65901332,0.0001589,2]
[401337033,1768145445098,-2500.0,0.0001589,2]
[401337034,1768145445108,-2500.0,0.0001589,2]
[401337036,1768145445117,-2500.0,0.0001589,2]
[401337038,1768145445127,-3000.0,0.00016012,2]
[401337039,1768145445137,-3000.0,0.00016012,2]
[401337040,1768145445148,-3000.0,0.00016012,2]
[401337041,1768145445157,-1506.66545063,0.00016012,2]
[401337042,1768145445166,-3000.0,0.00016012,2]
[401337043,1768145445176,-3000.0,0.00016012,2]
[401337044,1768145445186,-3000.0,0.00016012,2]
[401337045,1768145445198,-3000.0,0.00016012,2]
[401337046,1768145445207,-3000.0,0.00016012,2]
[401337047,1768145445216,-1397.40421659,0.00016012,2]
[401337048,1768145445226,-3000.0,0.00016012,2]
[401337049,1768145445235,-1600.0,0.00016164,2]
[401337050,1768145445244,-151.95,0.000162,2]
[401337051,1768145445254,-1800.0,0.00016412,2]
[401337052,1768145445263,-500.0,0.00016438,2]
[401337053,1768145445273,-624.23229661,0.00016438,2]
[401337054,1768145445282,-164.19129262,0.00016438,2]
[401337055,1768145445291,-3002.60955562,0.00016438,2]
[401337056,1768145445301,-2552.92932298,0.00016438,2]
[401337057,1768145445310,-3000.0,0.00016438,2]
[401337058,1768145445320,-3000.0,0.00016438,2]
[401337059,1768145445330,-3000.0,0.00016438,2]
[401337060,1768145445341,-3000.0,0.00016438,2]
[401337061,1768145445351,-260.15865923,0.00016438,2]
[401337062,1768145445361,-200.0,0.00016473,2]
[401337063,1768145445371,-3500.0,0.0001656,2]
[401337064,1768145445381,-3500.0,0.0001656,2]
[401337065,1768145445391,-3500.0,0.0001656,2]
[401337066,1768145445400,-3500.0,0.0001656,2]
[401337067,1768145445410,-3442.53787952,0.0001656,2]
[401337068,1768145445420,-3500.0,0.0001656,2]
[401337069,1768145445429,-3500.0,0.0001656,2]
[401337070,1768145445438,-3500.0,0.0001656,2]
[401337071,1768145445447,-3500.0,0.0001656,2]
[401337072,1768145445457,-508.4091143,0.00016782,2]
[401337073,1768145445467,-151.95,0.000169,2]
[401337074,1768145445476,-1730.0,0.00016917,2]
[401337075,1768145445486,-2100.0,0.0001696,2]
[401337076,1768145445496,-3500.0,0.00016986,2]
[401337077,1768145445505,-3500.0,0.00016986,2]
[401337078,1768145445515,-3500.0,0.00016986,2]
[401337079,1768145445526,-3500.0,0.00016986,2]
[401337080,1768145445536,-58044.91220467,0.00017,2]
[401337081,1768145445548,-4000.0,0.00017108,2]
[401337082,1768145445557,-3962.04250286,0.00017108,2]
[401337083,1768145445567,-4000.0,0.00017108,2]
[401337084,1768145445576,-3500.0,0.00017108,2]
[401337085,1768145445588,-4000.0,0.00017108,2]
[401337086,1768145445598,-4000.0,0.00017108,2]
[401337087,1768145445609,-4000.0,0.00017108,2]
[401337088,1768145445618,-4000.0,0.00017108,2]
[401337089,1768145445628,-1901.71937705,0.0001726,2]
[401337090,1768145445638,-5000.0,0.00017412,2]
[401337091,1768145445647,-1000.0,0.00017462,2]
[401337092,1768145445657,-1000.0,0.00017462,2]
[401337093,1768145445666,-2400.0,0.00017508,2]
[401337094,1768145445676,-1078.16970935,0.00017534,2]
[401337095,1768145445684,-4000.0,0.00017534,2]
[401337096,1768145445694,-4000.0,0.00017534,2]
[401337097,1768145445703,-4000.0,0.00017534,2]
[401337098,1768145445712,-151.95,0.000176,2]
[401337099,1768145445721,-2136.47349432,0.000176,2]
[401337100,1768145445730,-4500.0,0.00017656,2]
[401337101,1768145445740,-1878.46600243,0.00017656,2]
[401337102,1768145445750,-4500.0,0.00017656,2]
[401337103,1768145445759,-4500.0,0.00017656,2]
[401337104,1768145445769,-4500.0,0.00017656,2]
[401337105,1768145445778,-4500.0,0.00017656,2]
[401337106,1768145445788,-400.0,0.00017842,2]
[401337107,1768145445797,-92701.510234,0.00017842,2]
[401337108,1768145445807,-20382.5336541,0.00018,2]
[401337110,1768145445817,-744.72420012,0.00018056,2]
[401337111,1768145445827,-4500.0,0.00018082,2]
[401337112,1768145445838,-4500.0,0.00018082,2]
[401337113,1768145445848,-4500.0,0.00018082,2]
[401337114,1768145445858,-151.95,0.000182,2]
[401337115,1768145445867,-4495.04726907,0.00018204,2]
[401337116,1768145445879,-5000.0,0.00018204,2]
[401337117,1768145445890,-2642.48470631,0.00018204,2]
[401337118,1768145445900,-988.31906632,0.00018204,2]
[401337119,1768145445910,-5000.0,0.00018204,2]
[401337120,1768145445920,-626.25201,0.00018493,2]
[401337121,1768145445930,-5000.0,0.0001863,2]
[401337122,1768145445940,-5000.0,0.0001863,2]
[401337123,1768145445950,-5000.0,0.0001863,2]
[401337124,1768145445959,-5500.0,0.00018752,2]
[401337125,1768145445969,-2821.06911742,0.00018752,2]
[401337126,1768145445978,-561.61471928,0.00018782,2]
[401337127,1768145445988,-3429.65312779,0.00018835,2]
[401337128,1768145445997,-5000.0,0.00018863,2]
[401337129,1768145446007,-151.95,0.000189,2]
[401337130,1768145446017,-1418.97723055,0.00019178,2]
[401337131,1768145446026,-5500.0,0.00019178,2]
[401337132,1768145446037,-5500.0,0.00019178,2]
[401337133,1768145446047,-2140.41,0.000192,2]
[401337134,1768145446056,-13367.01,0.000192,2]
[401337135,1768145446066,-1000.0,0.00019208,2]
[401337136,1768145446077,-1000.0,0.00019208,2]
[401337137,1768145446087,-579.0,0.00019208,2]
[401337138,1768145446097,-166.96,0.000193,2]
[401337139,1768145446108,-163.88,0.000193,2]
[401337141,1768145446117,-167.58,0.000193,2]
[401337143,1768145446127,-2732.45700431,0.000193,2]
[401337144,1768145446136,-151.95,0.000196,2]
[401337145,1768145446145,-5461.92726002,0.00019726,2]
[401337149,1768145446155,-6000.0,0.00019726,2]
[401337151,1768145446247,-52113.00553346,0.0002,2]
[401337153,1768145446256,-151.95,0.000202,2]
[401337155,1768145446266,-556.3,0.00020216,2]
[401337156,1768145446276,-6500.0,0.00020274,2]
[401337157,1768145446285,-151.0,0.000206,4]
[401337158,1768145446294,-151.0,0.000206,4]
[401337159,1768145446303,-151.0,0.000206,4]
[401337161,1768145446312,-151.0,0.000206,4]
[401337162,1768145446321,-151.0,0.000206,4]
[401337164,1768145446331,-151.0,0.000206,4]
[401337166,1768145446340,-151.0,0.000206,4]
[401337168,1768145446349,-153.90472729,0.000206,4]
[401337169,1768145446358,-151.0,0.000206,4]
[401337171,1768145446367,-151.0,0.000206,4]
[401337173,1768145446377,-151.0,0.000206,4]
[401337175,1768145446386,-151.0,0.000206,4]
[401337177,1768145446395,-151.0,0.000206,4]
[401337178,1768145446404,-151.0,0.000206,4]
[401337180,1768145446414,-151.0,0.000206,4]
[401337182,1768145446423,-151.0,0.000206,4]
[401337184,1768145446433,-614.82032426,0.00020782,2]
[401337185,1768145446442,-7000.0,0.00020822,2]
[401337186,1768145446451,-151.0,0.000209,4]
[401337187,1768145446460,-151.95,0.000209,2]
[401337188,1768145446470,-151.0,0.000209,3]
[401337189,1768145446479,-1000.0,0.00021129,10]
[401337190,1768145446489,-1000.0,0.00021129,10]
[401337191,1768145446499,-1000.0,0.00021129,10]
[401337192,1768145446508,-2067.54835774,0.0002137,2]
[401337193,1768145446519,-151.95,0.000215,2]
[401337194,1768145446529,-12011.78673207,0.000215,2]
[401337195,1768145446539,-151.0,0.000215,2]
[401337196,1768145446549,-173.7590096,0.00021683,2]
[401337197,1768145446559,-556.3,0.00021742,2]
[401337198,1768145446569,-626.25201,0.00021918,2]
[401337199,1768145446580,-728.329358,0.00021918,2]
[401337200,1768145446589,-728.329358,0.00021918,2]
[401337201,1768145446598,-728.329358,0.00021918,2]
[401337202,1768145446608,-728.329358,0.00021918,2]
[401337203,1768145446618,-151.0,0.00021918,2]
[401337204,1768145446630,-151.0,0.00021918,2]
[401337205,1768145446641,-163.313773,0.00021918,2]
[401337206,1768145446652,-152.567384,0.00021918,2]
[401337207,1768145446662,-151.0,0.00021918,2]
[401337208,1768145446672,-161.662681,0.00021918,2]
[401337209,1768145446682,-151.0,0.00021918,2]
[401337210,1768145446692,-151.0,0.00021918,2]
[401337211,1768145446702,-151.0,0.00021918,2]
[401337212,1768145446711,-151.0,0.00021918,2]
[401337213,1768145446720,-151.0,0.00021918,2]
[401337214,1768145446730,-152.90727816,0.00021918,2]
[401337215,1768145446741,-13367.01,0.00022,2]
[401337216,1768145446750,-151.95,0.000222,2]
[401337217,1768145446760,-173.7590096,0.00022596,56]
[401337218,1768145446770,-668.02592925,0.00022782,2]
[401337219,1768145446779,-151.95,0.000229,2]
[401337220,1768145446788,-258.38,0.00023219,2]
[401337221,1768145446797,-1000.0,0.00023242,10]
[401337222,1768145446806,-1000.0,0.00023242,10]
[401337223,1768145446816,-1000.0,0.00023242,10]
[401337224,1768145446827,-715.0,0.00023242,10]
[401337225,1768145446837,-556.3,0.00023268,2]
[401337226,1768145446849,-3429.65312779,0.00023403,2]
[401337227,1768145446859,-151.95,0.000235,2]
[401337228,1768145446868,-151.95,0.000242,2]
[401337229,1768145446878,-630.83049355,0.0002465,2]
[401337230,1768145446887,-155.5739919,0.00024754,5]
[401337231,1768145446897,-721.23153423,0.00024782,2]
[401337232,1768145446906,-556.3,0.00024793,2]
[401337233,1768145446916,-151.95,0.000248,2]
[401337234,1768145446926,-2140.41,0.000249,14]
[401337235,1768145446936,-151.0,0.000249,7]
[401337236,1768145446946,-151.0,0.000249,7]
[401337237,1768145446955,-240.800368,0.000249,7]
[401337238,1768145446966,-151.0,0.000249,7]
[401337239,1768145446975,-155.856993,0.000249,7]
[401337240,1768145446986,-151.0,0.000249,7]
[401337241,1768145446995,-151.0,0.000249,7]
[401337242,1768145447005,-151.0,0.000249,7]
[401337243,1768145447015,-151.0,0.000249,7]
[401337244,1768145447027,-151.292503,0.000249,7]
[401337245,1768145447037,-151.0,0.000249,7]
[401337246,1768145447046,-301.393574,0.000249,7]
[401337247,1768145447055,-200.586455,0.000249,7]
[401337248,1768145447065,-151.0,0.000249,7]
[401337249,1768145447075,-151.0,0.000249,7]
[401337250,1768145447084,-151.0,0.000249,7]
[401337251,1768145447093,-151.0,0.000249,7]
[401337252,1768145447103,-151.0,0.000249,7]
[401337253,1768145447114,-151.0,0.000249,7]
[401337254,1768145447124,-151.0,0.000249,7]
[401337255,1768145447134,-225.859576,0.000249,7]
[401337256,1768145447144,-151.0,0.000249,7]
[401337257,1768145447153,-216.089114,0.000249,7]
[401337258,1768145447162,-216.089114,0.000249,7]
[401337259,1768145447172,-216.089114,0.000249,7]
[401337260,1768145447181,-151.0,0.000249,7]
[401337261,1768145447191,-216.089114,0.000249,7]
[401337262,1768145447204,-151.0,0.000249,7]
[401337263,1768145447213,-151.0,0.000249,7]
[401337264,1768145447222,-164.871038,0.000249,7]
[401337265,1768145447232,-151.0,0.000249,7]
[401337266,1768145447241,-170.54126,0.000249,7]
[401337267,1768145447251,-151.0,0.000249,7]
[401337268,1768145447260,-151.0,0.000249,7]
[401337269,1768145447270,-151.0,0.000249,7]
[401337270,1768145447279,-70605.4978566,0.000249,2]
[401337271,1768145447288,-151.0,0.000249,7]
[401337272,1768145447298,-151.0,0.000249,7]
[401337273,1768145447307,-151.0,0.000249,7]
[401337274,1768145447316,-151.0,0.000249,7]
[401337275,1768145447325,-151.0,0.000249,2]
[401337276,1768145447335,-151.0,0.000249,7]
[401337277,1768145447345,-156.419626,0.000249,7]
[401337278,1768145447355,-151.0,0.000249,7]
[401337279,1768145447364,-1324.597958,0.000249,7]
[401337280,1768145447374,-1324.597958,0.000249,7]
[401337281,1768145447383,-1638.845663,0.000249,7]
[401337282,1768145447392,-1324.597958,0.000249,7]
[401337283,1768145447401,-1638.845663,0.000249,7]
[401337284,1768145447410,-1638.845663,0.000249,7]
[401337285,1768145447419,-1638.845663,0.000249,7]
[401337286,1768145447428,-1324.597958,0.000249,7]
[401337287,1768145447438,-286.469083,0.000249,7]
[401337288,1768145447448,-151.0,0.000249,7]
[401337289,1768145447458,-165.523557,0.000249,7]
[401337290,1768145447467,-165.523557,0.000249,7]
[401337291,1768145447476,-165.523557,0.000249,7]
[401337292,1768145447487,-165.523557,0.000249,7]
[401337293,1768145447497,-349.055387,0.000249,7]
[401337294,1768145447507,-349.055387,0.000249,7]
[401337295,1768145447516,-349.055387,0.000249,7]
[401337296,1768145447526,-349.055387,0.000249,7]
[401337297,1768145447535,-151.0,0.000249,7]
[401337298,1768145447544,-2675.46555144,0.00025,2]
[401337299,1768145447554,-20757.85955183,0.00025,2]
[401337301,1768145447564,-10364.0,0.00025,2]
[401337303,1768145447575,-500.0,0.00025,2]
[401337305,1768145447585,-2074.08935166,0.00025,2]
[401337306,1768145447594,-759.6161654,0.00025,2]
[401337307,1768145447604,-1000.74,0.000251,7]
[401337308,1768145447613,-250.0,0.00025205,2]
[401337309,1768145447623,-626.25201,0.00025342,2]
[401337310,1768145447632,-500.0,0.00025343,2]
[401337311,1768145447642,-500.0,0.00025343,2]
[401337312,1768145447651,-176.23516734,0.00025343,2]
[401337313,1768145447661,-500.0,0.00025343,2]
[401337314,1768145447670,-500.0,0.00025343,2]
[401337315,1768145447679,-500.0,0.00025343,2]
[401337316,1768145447688,-500.0,0.00025343,2]
[401337317,1768145447697,-171.65605742,0.00025343,2]
[401337318,1768145447707,-500.0,0.00025343,2]
[401337319,1768145447718,-500.0,0.00025343,2]
[401337320,1768145447729,-500.0,0.00025343,2]
[401337321,1768145447739,-151.23971812,0.00025343,2]
[401337322,1768145447749,-459.0,0.00025343,2]
[401337323,1768145447758,-500.0,0.00025343,2]
[401337324,1768145447768,-154.30171575,0.00025343,2]
[401337325,1768145447778,-500.0,0.00025343,2]
[401337326,1768145447787,-200.0,0.00025343,2]
[401337327,1768145447796,-500.0,0.00025343,2]
[401337328,1768145447805,-2317.0,0.00025343,2]
[401337329,1768145447814,-500.0,0.0002548,2]
[401337330,1768145447823,-500.0,0.0002548,2]
[401337331,1768145447833,-500.0,0.0002548,2]
[401337332,1768145447843,-500.0,0.0002548,2]
[401337333,1768145447852,-500.0,0.0002548,2]
[401337334,1768145447861,-500.0,0.0002548,2]
[401337335,1768145447869,-500.0,0.0002548,2]
[401337336,1768145447878,-500.0,0.0002548,2]
[401337337,1768145447888,-500.0,0.0002548,2]
[401337338,1768145447897,-459.0,0.0002548,2]
[401337339,1768145447906,-500.0,0.0002548,2]
[401337340,1768145447916,-500.0,0.0002548,2]
[401337341,1768145447925,-500.0,0.0002548,2]
[401337342,1768145447935,-2317.0,0.0002548,2]
[401337343,1768145447944,-151.95,0.000255,2]
[401337344,1768145447953,-1000.0,0.000255,2]
[401337345,1768145447963,-1000.0,0.00025566,10]
[401337346,1768145447972,-1000.0,0.00025566,10]
[401337347,1768145447982,-1000.0,0.00025566,10]
[401337348,1768145447991,-13367.01,0.000256,2]
[401337349,1768145448001,-303.77529652,0.00025616,14]
[401337350,1768145448010,-167.41762285,0.00025617,2]
[401337351,1768145448019,-500.0,0.00025617,2]
[401337352,1768145448029,-179.07075974,0.00025617,2]
[401337353,1768145448039,-305.94399117,0.00025617,2]
[401337354,1768145448048,-248.52490689,0.00025617,2]
[401337355,1768145448138,-220.16550018,0.00025617,2]
[401337356,1768145448148,-500.0,0.00025617,2]
[401337357,1768145448158,-373.56062369,0.00025617,2]
[401337358,1768145448168,-500.0,0.00025617,2]
[401337359,1768145448178,-500.0,0.00025617,2]
[401337360,1768145448187,-459.0,0.00025617,2]
[401337361,1768145448199,-500.0,0.00025617,2]
[401337362,1768145448208,-201.95802809,0.00025617,2]
[401337363,1768145448218,-500.0,0.00025617,2]
[401337364,1768145448227,-500.0,0.00025617,2]
[401337365,1768145448238,-2317.0,0.00025617,2]
[401337366,1768145448247,-350.0,0.00025753,2]
[401337367,1768145448257,-500.0,0.00025754,2]
[401337368,1768145448266,-500.0,0.00025754,2]
[401337369,1768145448279,-500.0,0.00025754,2]
[401337370,1768145448288,-450.0,0.00025754,2]
[401337371,1768145448298,-459.0,0.00025754,2]
[401337372,1768145448307,-500.0,0.00025754,2]
[401337373,1768145448316,-182.4855359,0.00025754,2]
[401337374,1768145448326,-500.0,0.00025754,2]
[401337375,1768145448335,-163.14839871,0.00025754,2]
[401337376,1768145448344,-2317.0,0.00025754,2]
[401337377,1768145448354,-500.0,0.00025754,2]
[401337378,1768145448363,-2026.41544348,0.0002587,2]
[401337379,1768145448372,-638.09290909,0.00025891,2]
[401337380,1768145448382,-500.0,0.00025891,2]
[401337381,1768145448391,-500.0,0.00025891,2]